[Event "Early-Titled-Tuesday-Blitz-May-07-2024"]
[Site "Chess.com"]
[Date "2024.05.07"]
[Round "7"]
[White "ErikRonka"]
[Black "stolencandy13"]
[Result "1/2-1/2"]
[WhiteElo "2521"]
[BlackElo "2672"]
[TimeControl "180+1"]
[EndTime "9:23:29 PDT"]
[Termination "Game drawn - insufficient material"]

1. e4 {[%clk 0:03:00.9]} 1... c6 {[%clk 0:02:36.5]} 2. d4 {[%clk 0:03:00.4]}
2... d5 {[%clk 0:02:36.4]} 3. Nd2 {[%clk 0:03:01]} 3... dxe4 {[%clk 0:02:36.6]}
4. Nxe4 {[%clk 0:03:01.9]} 4... Bf5 {[%clk 0:02:37.1]} 5. Ng3 {[%clk 0:03:02]}
5... Bg6 {[%clk 0:02:35.9]} 6. h4 {[%clk 0:03:02.6]} 6... h6 {[%clk 0:02:36]} 7.
Nf3 {[%clk 0:03:03.1]} 7... Nd7 {[%clk 0:02:36.1]} 8. h5 {[%clk 0:03:03.1]} 8...
Bh7 {[%clk 0:02:36.5]} 9. Bd3 {[%clk 0:03:03.7]} 9... Bxd3 {[%clk 0:02:37.1]}
10. Qxd3 {[%clk 0:03:04.6]} 10... e6 {[%clk 0:02:37.6]} 11. Bd2 {[%clk
0:03:05.2]} 11... Ngf6 {[%clk 0:02:38.1]} 12. O-O-O {[%clk 0:03:05.7]} 12... Be7
{[%clk 0:02:39]} 13. Kb1 {[%clk 0:03:01.9]} 13... a5 {[%clk 0:02:37]} 14. Ne4
{[%clk 0:03:00.8]} 14... a4 {[%clk 0:02:36.8]} 15. Nxf6+ {[%clk 0:02:42.3]}
15... Bxf6 {[%clk 0:02:33.5]} 16. g4 {[%clk 0:02:38.8]} 16... a3 {[%clk
0:02:33.2]} 17. b3 {[%clk 0:02:38.5]} 17... c5 {[%clk 0:02:33]} 18. d5 {[%clk
0:02:07.5]} 18... O-O {[%clk 0:02:14.9]} 19. dxe6 {[%clk 0:02:07]} 19... fxe6
{[%clk 0:02:11.1]} 20. g5 {[%clk 0:01:30.9]} 20... hxg5 {[%clk 0:01:56.7]} 21.
h6 {[%clk 0:01:31.8]} 21... Ne5 {[%clk 0:01:56]} 22. Nxe5 {[%clk 0:01:24.9]}
22... Bxe5 {[%clk 0:01:53.8]} 23. hxg7 {[%clk 0:01:21.6]} 23... Bxg7 {[%clk
0:01:38.5]} 24. Qh7+ {[%clk 0:01:14.8]} 24... Kf7 {[%clk 0:01:38.8]} 25. Bc3
{[%clk 0:01:04.9]} 25... Rg8 {[%clk 0:00:47.1]} 26. Rxd8 {[%clk 0:01:01.2]}
26... Raxd8 {[%clk 0:00:48]} 27. Bxg7 {[%clk 0:00:53.1]} 27... Rxg7 {[%clk
0:00:47.6]} 28. Qe4 {[%clk 0:00:49.7]} 28... Rd5 {[%clk 0:00:42.9]} 29. Qa4
{[%clk 0:00:47.2]} 29... Rf5 {[%clk 0:00:34.7]} 30. Qxa3 {[%clk 0:00:45.4]}
30... g4 {[%clk 0:00:31.2]} 31. Qa7 {[%clk 0:00:41.2]} 31... Kf6 {[%clk
0:00:29.3]} 32. Rh2 {[%clk 0:00:33.8]} 32... b5 {[%clk 0:00:23.2]} 33. Qb6
{[%clk 0:00:32.2]} 33... b4 {[%clk 0:00:23.1]} 34. Qd8+ {[%clk 0:00:30.1]} 34...
Kg6 {[%clk 0:00:21.2]} 35. Qd3 {[%clk 0:00:26.4]} 35... Kf6 {[%clk 0:00:20.1]}
36. Rg2 {[%clk 0:00:21.7]} 36... Rd5 {[%clk 0:00:18.1]} 37. Qe2 {[%clk
0:00:18.5]} 37... Rdg5 {[%clk 0:00:16.6]} 38. f4 {[%clk 0:00:17.5]} 38... gxf3
{[%clk 0:00:14.9]} 39. Qxf3+ {[%clk 0:00:17.5]} 39... Rf5 {[%clk 0:00:14.7]} 40.
Qe2 {[%clk 0:00:16.4]} 40... Rd7 {[%clk 0:00:13.6]} 41. Rf2 {[%clk 0:00:15.5]}
41... Rd5 {[%clk 0:00:12.4]} 42. Rxf5+ {[%clk 0:00:15.5]} 42... exf5 {[%clk
0:00:11.9]} 43. Kb2 {[%clk 0:00:15.9]} 43... f4 {[%clk 0:00:12]} 44. Qf3 {[%clk
0:00:16.1]} 44... Ke5 {[%clk 0:00:10.7]} 45. c3 {[%clk 0:00:14.5]} 45... Rd2+
{[%clk 0:00:10.4]} 46. Kc1 {[%clk 0:00:14.8]} 46... Rxa2 {[%clk 0:00:08.6]} 47.
cxb4 {[%clk 0:00:15]} 47... cxb4 {[%clk 0:00:09.5]} 48. Kb1 {[%clk 0:00:12.8]}
48... Rd2 {[%clk 0:00:08.8]} 49. Kc1 {[%clk 0:00:11.9]} 49... Rd4 {[%clk
0:00:08.8]} 50. Qe2+ {[%clk 0:00:11.5]} 50... Kf5 {[%clk 0:00:07.9]} 51. Qb5+
{[%clk 0:00:11.8]} 51... Ke4 {[%clk 0:00:07.6]} 52. Qc5 {[%clk 0:00:12.2]} 52...
Rd3 {[%clk 0:00:06.5]} 53. Qe7+ {[%clk 0:00:08.7]} 53... Kf3 {[%clk 0:00:06.3]}
54. Kc2 {[%clk 0:00:09]} 54... Rc3+ {[%clk 0:00:06]} 55. Kb2 {[%clk 0:00:08.5]}
55... Re3 {[%clk 0:00:06.6]} 56. Qb7+ {[%clk 0:00:08.2]} 56... Kf2 {[%clk
0:00:06.1]} 57. Qxb4 {[%clk 0:00:08.8]} 57... f3 {[%clk 0:00:06.7]} 58. Qh4+
{[%clk 0:00:08.8]} 58... Ke2 {[%clk 0:00:06.3]} 59. Qc4+ {[%clk 0:00:07.9]}
59... Kf2 {[%clk 0:00:06.4]} 60. b4 {[%clk 0:00:06.4]} 60... Kg2 {[%clk
0:00:04.2]} 61. Qd5 {[%clk 0:00:05.8]} 61... Kf1 {[%clk 0:00:03.9]} 62. Qd1+
{[%clk 0:00:04.5]} 62... Kg2 {[%clk 0:00:04]} 63. Qd5 {[%clk 0:00:03.8]} 63...
Kf1 {[%clk 0:00:04]} 64. b5 {[%clk 0:00:04.3]} 64... f2 {[%clk 0:00:04]} 65. b6
{[%clk 0:00:04.4]} 65... Ke1 {[%clk 0:00:04]} 66. Qa5+ {[%clk 0:00:02.6]} 66...
Ke2 {[%clk 0:00:04.3]} 67. Qb5+ {[%clk 0:00:02.5]} 67... Ke1 {[%clk 0:00:04.5]}
68. b7 {[%clk 0:00:03.1]} 68... Re2+ {[%clk 0:00:03.2]} 69. Kc1 {[%clk
0:00:02.4]} 69... f1=Q {[%clk 0:00:03.2]} 70. b8=Q {[%clk 0:00:02.5]} 70... Qf4+
{[%clk 0:00:02.8]} 71. Kb1 {[%clk 0:00:02.6]} 71... Qe4+ {[%clk 0:00:03.1]} 72.
Ka1 {[%clk 0:00:02.3]} 72... Qd4+ {[%clk 0:00:03.7]} 73. Qb2 {[%clk 0:00:02.5]}
73... Rxb2 {[%clk 0:00:03.5]} 74. Qxb2 {[%clk 0:00:03.4]} 74... Qd1+ {[%clk
0:00:04.1]} 75. Qb1 {[%clk 0:00:03.4]} 75... Kd2 {[%clk 0:00:04.5]} 76. Qxd1+
{[%clk 0:00:02.9]} 76... Kxd1 {[%clk 0:00:05.4]} 1/2-1/2

[Event "Early-Titled-Tuesday-Blitz-May-07-2024"]
[Site "Chess.com"]
[Date "2024.05.07"]
[Round "7"]
[White "mbojan"]
[Black "andrew-blr"]
[Result "1-0"]
[WhiteElo "2899"]
[BlackElo "2604"]
[TimeControl "180+1"]
[EndTime "9:23:38 PDT"]
[Termination "mbojan won on time"]

1. a3 {[%clk 0:03:00.4]} 1... e5 {[%clk 0:02:55.3]} 2. e3 {[%clk 0:02:59.8]}
2... d5 {[%clk 0:02:54.9]} 3. d4 {[%clk 0:03:00.7]} 3... exd4 {[%clk 0:02:54.5]}
4. exd4 {[%clk 0:03:01.6]} 4... Bd6 {[%clk 0:02:53.3]} 5. Bd3 {[%clk 0:03:02.4]}
5... Ne7 {[%clk 0:02:53.1]} 6. Ne2 {[%clk 0:03:03.1]} 6... Bf5 {[%clk
0:02:52.7]} 7. Nbc3 {[%clk 0:03:03.1]} 7... c6 {[%clk 0:02:48.4]} 8. O-O {[%clk
0:03:01.5]} 8... O-O {[%clk 0:02:48.2]} 9. Bf4 {[%clk 0:03:01.4]} 9... Bxf4
{[%clk 0:02:44.3]} 10. Nxf4 {[%clk 0:03:02.3]} 10... Nd7 {[%clk 0:02:44.6]} 11.
Re1 {[%clk 0:03:01.7]} 11... Nf6 {[%clk 0:02:44]} 12. Rxe7 {[%clk 0:02:55.5]}
12... Bxd3 {[%clk 0:02:43.6]} 13. Rxb7 {[%clk 0:02:52]} 13... Ba6 {[%clk
0:02:43.3]} 14. Rb4 {[%clk 0:02:51.6]} 14... Re8 {[%clk 0:02:34.3]} 15. Na4
{[%clk 0:02:45.9]} 15... Bc4 {[%clk 0:02:32.1]} 16. Nc5 {[%clk 0:02:43.4]} 16...
a5 {[%clk 0:02:30.9]} 17. Rb7 {[%clk 0:02:43]} 17... Ne4 {[%clk 0:02:22.6]} 18.
Nfd3 {[%clk 0:02:09.2]} 18... Qf6 {[%clk 0:02:15.5]} 19. c3 {[%clk 0:02:00.4]}
19... Nxc5 {[%clk 0:02:02.5]} 20. Nxc5 {[%clk 0:01:39.3]} 20... Re2 {[%clk
0:02:01]} 21. Qf1 {[%clk 0:01:39.6]} 21... Rxb2 {[%clk 0:01:53.3]} 22. Rxb2
{[%clk 0:01:38.7]} 22... Bxf1 {[%clk 0:01:52.8]} 23. Rxf1 {[%clk 0:01:39.6]}
23... h5 {[%clk 0:01:51.1]} 24. h3 {[%clk 0:01:39.5]} 24... Qf4 {[%clk
0:01:49.3]} 25. Re1 {[%clk 0:01:38.5]} 25... Rb8 {[%clk 0:01:41.1]} 26. Rbe2
{[%clk 0:01:17.2]} 26... Qf5 {[%clk 0:01:39.4]} 27. a4 {[%clk 0:00:22.9]} 27...
Rb1 {[%clk 0:01:36.5]} 28. Rxb1 {[%clk 0:00:22.4]} 28... Qxb1+ {[%clk 0:01:36]}
29. Kh2 {[%clk 0:00:23.1]} 29... Qc1 {[%clk 0:01:29]} 30. Re3 {[%clk 0:00:22.8]}
30... g5 {[%clk 0:01:24.1]} 31. Nb7 {[%clk 0:00:18.3]} 31... Qc2 {[%clk
0:01:23.8]} 32. Rf3 {[%clk 0:00:16]} 32... g4 {[%clk 0:01:18.3]} 33. hxg4 {[%clk
0:00:16.1]} 33... hxg4 {[%clk 0:01:19.2]} 34. Rg3 {[%clk 0:00:16.8]} 34... Qxf2
{[%clk 0:01:18.9]} 35. Rxg4+ {[%clk 0:00:17.1]} 35... Kf8 {[%clk 0:01:18.6]} 36.
Nxa5 {[%clk 0:00:17.2]} 36... Qe2 {[%clk 0:01:11.6]} 37. Rg3 {[%clk 0:00:15.6]}
37... Qa6 {[%clk 0:01:11.4]} 38. Nb3 {[%clk 0:00:14.7]} 38... Qxa4 {[%clk
0:01:11.2]} 39. Nc5 {[%clk 0:00:15.5]} 39... Qd1 {[%clk 0:01:09.3]} 40. Nd7+
{[%clk 0:00:14]} 40... Ke7 {[%clk 0:01:09]} 41. Ne5 {[%clk 0:00:14.9]} 41... c5
{[%clk 0:01:03.9]} 42. Nf3 {[%clk 0:00:13.8]} 42... Qc1 {[%clk 0:00:56.4]} 43.
Ne5 {[%clk 0:00:11.6]} 43... Qh6+ {[%clk 0:00:52.7]} 44. Kg1 {[%clk 0:00:11.2]}
44... Qd2 {[%clk 0:00:52]} 45. Kh2 {[%clk 0:00:08.8]} 45... cxd4 {[%clk
0:00:51.6]} 46. cxd4 {[%clk 0:00:09.7]} 46... f6 {[%clk 0:00:51.2]} 47. Nf3
{[%clk 0:00:09.6]} 47... Qf4 {[%clk 0:00:50.3]} 48. Kh3 {[%clk 0:00:10]} 48...
Ke6 {[%clk 0:00:49.7]} 49. Rg4 {[%clk 0:00:10.2]} 49... Qe3 {[%clk 0:00:48.7]}
50. Kg3 {[%clk 0:00:10.1]} 50... Qc1 {[%clk 0:00:46.1]} 51. Rg8 {[%clk 0:00:10]}
51... Qc7+ {[%clk 0:00:43.7]} 52. Kf2 {[%clk 0:00:08.7]} 52... Qc2+ {[%clk
0:00:43.1]} 53. Kg3 {[%clk 0:00:08.6]} 53... Qc7+ {[%clk 0:00:42.3]} 54. Kf2
{[%clk 0:00:09.1]} 54... Kf5 {[%clk 0:00:42.3]} 55. Rh8 {[%clk 0:00:05.6]} 55...
Ke4 {[%clk 0:00:38.2]} 56. Rh4+ {[%clk 0:00:05.5]} 56... Kd3 {[%clk 0:00:38.5]}
57. Rh5 {[%clk 0:00:05.3]} 57... Kc4 {[%clk 0:00:30.4]} 58. Rh4 {[%clk
0:00:04.5]} 58... Kd3 {[%clk 0:00:24.4]} 59. Kg1 {[%clk 0:00:04.4]} 59... Ke3
{[%clk 0:00:23.4]} 60. Rh5 {[%clk 0:00:04]} 60... Qc1+ {[%clk 0:00:21.5]} 61.
Kh2 {[%clk 0:00:04.1]} 61... Kf2 {[%clk 0:00:20.7]} 62. Rf5 {[%clk 0:00:03.6]}
62... Qh6+ {[%clk 0:00:20.2]} 63. Nh4+ {[%clk 0:00:04.1]} 63... Ke3 {[%clk
0:00:17.3]} 64. Kh3 {[%clk 0:00:04.6]} 64... Kxd4 {[%clk 0:00:16.7]} 65. Rf3
{[%clk 0:00:04.7]} 65... Kc4 {[%clk 0:00:13.3]} 66. Kg3 {[%clk 0:00:04.3]} 66...
Qg5+ {[%clk 0:00:13.3]} 67. Kh3 {[%clk 0:00:04.9]} 67... d4 {[%clk 0:00:12.8]}
68. Nf5 {[%clk 0:00:05.3]} 68... d3 {[%clk 0:00:12]} 69. Nd6+ {[%clk 0:00:05.1]}
69... Kc3 {[%clk 0:00:12]} 70. Ne4+ {[%clk 0:00:05.2]} 70... Kc2 {[%clk
0:00:12.9]} 71. Nxg5 {[%clk 0:00:06.1]} 71... fxg5 {[%clk 0:00:13.2]} 72. Rxd3
{[%clk 0:00:06.6]} 72... Kxd3 {[%clk 0:00:13.1]} 73. Kg4 {[%clk 0:00:07.2]} 1-0

[Event "Early-Titled-Tuesday-Blitz-May-07-2024"]
[Site "Chess.com"]
[Date "2024.05.07"]
[Round "7"]
[White "ubdip"]
[Black "Yerkinio"]
[Result "1/2-1/2"]
[WhiteElo "2515"]
[BlackElo "2660"]
[TimeControl "180+1"]
[EndTime "9:23:46 PDT"]
[Termination "Game drawn - insufficient material"]

1. c4 {[%clk 0:03:00.9]} 1... e5 {[%clk 0:02:57.9]} 2. Nc3 {[%clk 0:03:00.7]}
2... Nf6 {[%clk 0:02:57.4]} 3. e3 {[%clk 0:02:59.4]} 3... d5 {[%clk 0:02:44.8]}
4. cxd5 {[%clk 0:02:58.9]} 4... Nxd5 {[%clk 0:02:45.7]} 5. Nf3 {[%clk 0:02:59]}
5... Nxc3 {[%clk 0:02:37.7]} 6. bxc3 {[%clk 0:02:58]} 6... Bd6 {[%clk
0:02:36.8]} 7. d4 {[%clk 0:02:56.6]} 7... Nc6 {[%clk 0:02:33.4]} 8. Bd3 {[%clk
0:02:48.1]} 8... O-O {[%clk 0:02:32]} 9. O-O {[%clk 0:02:46.8]} 9... Re8 {[%clk
0:02:30.5]} 10. Qc2 {[%clk 0:02:44.4]} 10... h6 {[%clk 0:02:27.4]} 11. a4 {[%clk
0:02:38.5]} 11... Bg4 {[%clk 0:02:26.1]} 12. Nd2 {[%clk 0:02:37.7]} 12... exd4
{[%clk 0:02:17.4]} 13. exd4 {[%clk 0:02:32.2]} 13... Qh4 {[%clk 0:02:00.2]} 14.
g3 {[%clk 0:02:32.1]} 14... Qh5 {[%clk 0:01:55.8]} 15. Ba3 {[%clk 0:02:25.4]}
15... Bxa3 {[%clk 0:01:45.6]} 16. Rxa3 {[%clk 0:02:26.3]} 16... Be2 {[%clk
0:01:44.6]} 17. Rb1 {[%clk 0:02:18.7]} 17... Bxd3 {[%clk 0:01:28.9]} 18. Qxd3
{[%clk 0:02:19.6]} 18... b6 {[%clk 0:01:28.7]} 19. Raa1 {[%clk 0:02:02.6]} 19...
Rad8 {[%clk 0:01:22.3]} 20. Re1 {[%clk 0:01:50.4]} 20... Qd5 {[%clk 0:01:17.6]}
21. Qb5 {[%clk 0:01:39]} 21... Qd7 {[%clk 0:01:05.7]} 22. Kg2 {[%clk 0:01:27.9]}
22... g6 {[%clk 0:00:54.8]} 23. Nf3 {[%clk 0:01:18.4]} 23... Kg7 {[%clk
0:00:52.6]} 24. Rad1 {[%clk 0:01:14.4]} 24... Nb8 {[%clk 0:00:25.1]} 25. Rxe8
{[%clk 0:01:08.9]} 25... Rxe8 {[%clk 0:00:26]} 26. Ne5 {[%clk 0:01:05]} 26...
Qe6 {[%clk 0:00:17.4]} 27. Rd2 {[%clk 0:00:51.5]} 27... c6 {[%clk 0:00:17.6]}
28. Qc4 {[%clk 0:00:29.9]} 28... Qxc4 {[%clk 0:00:17.6]} 29. Nxc4 {[%clk
0:00:30.8]} 29... Nd7 {[%clk 0:00:17.7]} 30. Nd6 {[%clk 0:00:27.3]} 30... Re1
{[%clk 0:00:17.7]} 31. Nc8 {[%clk 0:00:25.5]} 31... a6 {[%clk 0:00:15.9]} 32.
Rb2 {[%clk 0:00:24.8]} 32... b5 {[%clk 0:00:16.1]} 33. axb5 {[%clk 0:00:21.5]}
33... axb5 {[%clk 0:00:17]} 34. Na7 {[%clk 0:00:20.1]} 34... Re6 {[%clk
0:00:16.6]} 35. Ra2 {[%clk 0:00:18.6]} 35... Nb6 {[%clk 0:00:16.1]} 36. Ra6
{[%clk 0:00:17.8]} 36... Nd5 {[%clk 0:00:16.6]} 37. Rxc6 {[%clk 0:00:15.6]}
37... Rxc6 {[%clk 0:00:16.6]} 38. Nxc6 {[%clk 0:00:16.5]} 38... Nxc3 {[%clk
0:00:17.4]} 39. Kf3 {[%clk 0:00:16.4]} 39... f5 {[%clk 0:00:16.6]} 40. Ke3
{[%clk 0:00:13.7]} 40... Kf6 {[%clk 0:00:14]} 41. Kd3 {[%clk 0:00:13.5]} 41...
Nd5 {[%clk 0:00:13.7]} 42. Ne5 {[%clk 0:00:10.5]} 42... g5 {[%clk 0:00:12.7]}
43. Nc6 {[%clk 0:00:07.4]} 43... Ke6 {[%clk 0:00:08.2]} 44. Ne5 {[%clk
0:00:06.9]} 44... h5 {[%clk 0:00:07]} 45. Nc6 {[%clk 0:00:06.6]} 45... f4 {[%clk
0:00:06.2]} 46. Ne5 {[%clk 0:00:06.2]} 46... Kf5 {[%clk 0:00:06.1]} 47. Nc6
{[%clk 0:00:05.3]} 47... Kg4 {[%clk 0:00:06.3]} 48. Ne5+ {[%clk 0:00:04]} 48...
Kh3 {[%clk 0:00:05.9]} 49. gxf4 {[%clk 0:00:04.4]} 49... Nxf4+ {[%clk 0:00:06]}
50. Ke4 {[%clk 0:00:04.5]} 50... Kxh2 {[%clk 0:00:06.9]} 51. Kf3 {[%clk
0:00:04.6]} 51... h4 {[%clk 0:00:05.6]} 52. Nf7 {[%clk 0:00:04.3]} 52... Ne6
{[%clk 0:00:04.6]} 53. d5 {[%clk 0:00:04.1]} 53... Nc7 {[%clk 0:00:03.5]} 54. d6
{[%clk 0:00:04.2]} 54... Ne6 {[%clk 0:00:04.1]} 55. Kg4 {[%clk 0:00:04]} 55...
b4 {[%clk 0:00:03.7]} 56. d7 {[%clk 0:00:04.1]} 56... b3 {[%clk 0:00:03.4]} 57.
Ne5 {[%clk 0:00:03.2]} 57... b2 {[%clk 0:00:03.1]} 58. Nf3+ {[%clk 0:00:03.8]}
58... Kh1 {[%clk 0:00:02.9]} 59. Nd2 {[%clk 0:00:04.2]} 59... Kg2 {[%clk
0:00:01.4]} 60. f4 {[%clk 0:00:04.4]} 60... gxf4 {[%clk 0:00:01.2]} 61. Kxh4
{[%clk 0:00:04.9]} 61... f3 {[%clk 0:00:01.2]} 62. Kg4 {[%clk 0:00:03.5]} 62...
f2 {[%clk 0:00:01.6]} 63. Kf5 {[%clk 0:00:04.1]} 63... f1=Q+ {[%clk 0:00:01.5]}
64. Nxf1 {[%clk 0:00:04.2]} 64... Kxf1 {[%clk 0:00:01.3]} 65. Kxe6 {[%clk
0:00:05.1]} 65... b1=Q {[%clk 0:00:01.5]} 66. d8=Q {[%clk 0:00:05.4]} 66... Qe4+
{[%clk 0:00:02.3]} 67. Kd7 {[%clk 0:00:05.8]} 67... Qd5+ {[%clk 0:00:02.5]} 68.
Kc7 {[%clk 0:00:06.5]} 68... Qc5+ {[%clk 0:00:02.8]} 69. Kd7 {[%clk 0:00:06.6]}
69... Qb5+ {[%clk 0:00:03]} 70. Kc7 {[%clk 0:00:06.8]} 70... Kf2 {[%clk
0:00:03.2]} 71. Qd4+ {[%clk 0:00:05.8]} 71... Kf3 {[%clk 0:00:03.5]} 72. Qd6
{[%clk 0:00:05.7]} 72... Qa5+ {[%clk 0:00:02.3]} 73. Kd7 {[%clk 0:00:05.6]}
73... Qf5+ {[%clk 0:00:02.1]} 74. Qe6 {[%clk 0:00:05.5]} 74... Qh7+ {[%clk
0:00:03]} 75. Qe7 {[%clk 0:00:05.7]} 75... Qf5+ {[%clk 0:00:03.3]} 76. Qe6
{[%clk 0:00:06.2]} 76... Qf8 {[%clk 0:00:03.3]} 77. Qd6 {[%clk 0:00:05.7]} 77...
Qf7+ {[%clk 0:00:02.6]} 78. Qe7 {[%clk 0:00:05.9]} 78... Qd5+ {[%clk 0:00:03.1]}
79. Qd6 {[%clk 0:00:06.4]} 79... Qb7+ {[%clk 0:00:03.8]} 80. Qc7 {[%clk
0:00:06.4]} 80... Qa8 {[%clk 0:00:03.8]} 81. Qc6+ {[%clk 0:00:06.3]} 81... Qxc6+
{[%clk 0:00:04]} 82. Kxc6 {[%clk 0:00:07.2]} 1/2-1/2

[Event "Early-Titled-Tuesday-Blitz-May-07-2024"]
[Site "Chess.com"]
[Date "2024.05.07"]
[Round "7"]
[White "Yan_Dyomin2010"]
[Black "Byniolus"]
[Result "0-1"]
[WhiteElo "2610"]
[BlackElo "2813"]
[TimeControl "180+1"]
[EndTime "9:23:57 PDT"]
[Termination "Byniolus won by resignation"]

1. e4 {[%clk 0:03:00.9]} 1... d6 {[%clk 0:02:58.8]} 2. d4 {[%clk 0:03:01.1]}
2... Nf6 {[%clk 0:02:59.7]} 3. Nc3 {[%clk 0:03:00.8]} 3... c6 {[%clk 0:03:00]}
4. f3 {[%clk 0:02:55.7]} 4... Qb6 {[%clk 0:03:00]} 5. Na4 {[%clk 0:02:43.5]}
5... Qa5+ {[%clk 0:02:59.3]} 6. Nc3 {[%clk 0:02:43.7]} 6... Qb6 {[%clk
0:02:59.4]} 7. Na4 {[%clk 0:02:43.7]} 7... Qa5+ {[%clk 0:02:59.9]} 8. Nc3 {[%clk
0:02:43.9]} 8... e5 {[%clk 0:03:00.7]} 9. Be3 {[%clk 0:02:41.1]} 9... Nbd7
{[%clk 0:02:58.4]} 10. Qd2 {[%clk 0:02:41.1]} 10... b5 {[%clk 0:02:51.3]} 11. a3
{[%clk 0:02:34.1]} 11... Be7 {[%clk 0:02:47.5]} 12. O-O-O {[%clk 0:02:28.9]}
12... Rb8 {[%clk 0:02:27.2]} 13. Kb1 {[%clk 0:02:24.2]} 13... b4 {[%clk
0:02:16.5]} 14. Na2 {[%clk 0:02:22.1]} 14... exd4 {[%clk 0:02:16.4]} 15. Bxd4
{[%clk 0:02:19.3]} 15... c5 {[%clk 0:02:16.5]} 16. axb4 {[%clk 0:02:18.9]} 16...
cxb4 {[%clk 0:02:11.2]} 17. Bc4 {[%clk 0:02:19.5]} 17... O-O {[%clk 0:01:50]}
18. Ne2 {[%clk 0:02:18.5]} 18... Nc5 {[%clk 0:01:48.3]} 19. Nec1 {[%clk
0:02:17]} 19... Be6 {[%clk 0:01:44.8]} 20. Bxc5 {[%clk 0:02:03]} 20... dxc5
{[%clk 0:01:31.8]} 21. Bxe6 {[%clk 0:01:58.6]} 21... fxe6 {[%clk 0:01:32.7]} 22.
Qe2 {[%clk 0:01:59.1]} 22... Rb6 {[%clk 0:01:12.7]} 23. Qc4 {[%clk 0:01:57.8]}
23... a6 {[%clk 0:01:01.7]} 24. Nb3 {[%clk 0:01:32.2]} 24... Qb5 {[%clk
0:01:01.7]} 25. Qxb5 {[%clk 0:01:31]} 25... axb5 {[%clk 0:01:00.9]} 26. Nbc1
{[%clk 0:01:15.1]} 26... Ra8 {[%clk 0:00:59.9]} 27. c3 {[%clk 0:01:13.6]} 27...
bxc3 {[%clk 0:00:54.6]} 28. Nxc3 {[%clk 0:01:13.1]} 28... b4 {[%clk 0:00:51.3]}
29. N3e2 {[%clk 0:01:09.2]} 29... c4 {[%clk 0:00:45.7]} 30. Rd4 {[%clk
0:01:03.6]} 30... c3 {[%clk 0:00:39.4]} 31. bxc3 {[%clk 0:00:54.2]} 31... bxc3+
{[%clk 0:00:39.3]} 32. Kc2 {[%clk 0:00:54.4]} 32... Ra3 {[%clk 0:00:27.9]} 33.
Rc4 {[%clk 0:00:45.2]} 33... Rb2+ {[%clk 0:00:26.1]} 34. Kd1 {[%clk 0:00:45.5]}
34... Bb4 {[%clk 0:00:20.5]} 35. Ke1 {[%clk 0:00:39.4]} 35... Nd7 {[%clk
0:00:12.9]} 36. Kf2 {[%clk 0:00:38.3]} 36... Ne5 {[%clk 0:00:13.2]} 37. Rc8+
{[%clk 0:00:35.7]} 37... Kf7 {[%clk 0:00:13.6]} 38. f4 {[%clk 0:00:35.2]} 38...
Ng4+ {[%clk 0:00:08.8]} 39. Kf3 {[%clk 0:00:32.2]} 39... Nf6 {[%clk 0:00:09.7]}
40. Rd1 {[%clk 0:00:20.5]} 40... Rd2 {[%clk 0:00:06.2]} 41. Rc7+ {[%clk
0:00:14.5]} 41... Kg6 {[%clk 0:00:05.7]} 42. f5+ {[%clk 0:00:14]} 42... Kh6
{[%clk 0:00:06.1]} 43. Rf1 {[%clk 0:00:10.8]} 43... c2+ {[%clk 0:00:05.1]} 44.
Kf2 {[%clk 0:00:10.8]} 44... Nxe4+ {[%clk 0:00:05.3]} 45. Kg1 {[%clk 0:00:11.1]}
45... Bc5+ {[%clk 0:00:04.5]} 46. Rxc5 {[%clk 0:00:10.8]} 46... Nxc5 {[%clk
0:00:05.4]} 47. fxe6 {[%clk 0:00:11.1]} 47... Nxe6 {[%clk 0:00:05.4]} 48. g4
{[%clk 0:00:09.8]} 48... Rd1 {[%clk 0:00:05.1]} 49. Kf2 {[%clk 0:00:09.3]} 49...
Rxf1+ {[%clk 0:00:04.3]} 50. Kxf1 {[%clk 0:00:10.2]} 50... Kg6 {[%clk
0:00:03.2]} 51. Ke1 {[%clk 0:00:11.1]} 51... Kf7 {[%clk 0:00:03.3]} 52. Kd2
{[%clk 0:00:10.7]} 52... Rh3 {[%clk 0:00:03.5]} 53. Kxc2 {[%clk 0:00:09.3]}
53... Rxh2 {[%clk 0:00:04.4]} 54. Kd3 {[%clk 0:00:10.2]} 54... Rg2 {[%clk
0:00:04.2]} 55. Ke4 {[%clk 0:00:09]} 55... Rxg4+ {[%clk 0:00:04.3]} 56. Kf3
{[%clk 0:00:09.9]} 56... Ra4 {[%clk 0:00:04.6]} 57. Nd3 {[%clk 0:00:09.4]} 57...
Ra3 {[%clk 0:00:04.9]} 58. Ke4 {[%clk 0:00:09.2]} 58... Kf6 {[%clk 0:00:05.1]}
59. Ng3 {[%clk 0:00:07]} 59... g6 {[%clk 0:00:04.9]} 60. Nf1 {[%clk 0:00:05.7]}
60... h5 {[%clk 0:00:04.9]} 61. Ne3 {[%clk 0:00:05.7]} 61... Ng5+ {[%clk
0:00:05]} 62. Kd4 {[%clk 0:00:05.3]} 62... Nf3+ {[%clk 0:00:05.8]} 63. Ke4
{[%clk 0:00:05.9]} 63... Nd2+ {[%clk 0:00:06.2]} 64. Kd4 {[%clk 0:00:06.5]}
64... Kg5 {[%clk 0:00:04.7]} 65. Nc2 {[%clk 0:00:05.4]} 65... Ra8 {[%clk
0:00:04]} 66. Ke3 {[%clk 0:00:05.7]} 66... Nc4+ {[%clk 0:00:04.5]} 67. Kf3
{[%clk 0:00:06.1]} 67... Rf8+ {[%clk 0:00:04.2]} 68. Kg2 {[%clk 0:00:05.9]}
68... Rd8 {[%clk 0:00:03.7]} 69. Nce1 {[%clk 0:00:03.2]} 69... h4 {[%clk
0:00:03.5]} 70. Nf2 {[%clk 0:00:03.7]} 70... Kh5 {[%clk 0:00:03.6]} 71. Kf3
{[%clk 0:00:03.9]} 71... g5 {[%clk 0:00:04]} 72. Ng2 {[%clk 0:00:02.6]} 72...
Rf8+ {[%clk 0:00:04.9]} 73. Ke2 {[%clk 0:00:02.5]} 73... h3 {[%clk 0:00:04.2]}
74. Nxh3 {[%clk 0:00:02]} 74... Re8+ {[%clk 0:00:02.4]} 75. Kf1 {[%clk 0:00:02]}
75... Ne5 {[%clk 0:00:02.6]} 76. Nf2 {[%clk 0:00:02.8]} 76... Rf8 {[%clk
0:00:02.7]} 77. Kg1 {[%clk 0:00:02.6]} 77... Nf3+ {[%clk 0:00:02.7]} 78. Kf1
{[%clk 0:00:03.5]} 78... Nh4 {[%clk 0:00:02.5]} 79. Ne3 {[%clk 0:00:04.1]} 79...
Ng6 {[%clk 0:00:01.9]} 80. Ke2 {[%clk 0:00:04.3]} 80... Nf4+ {[%clk 0:00:02.6]}
81. Kf1 {[%clk 0:00:04.8]} 81... Re8 {[%clk 0:00:03.5]} 82. Ned1 {[%clk
0:00:04.9]} 82... Ra8 {[%clk 0:00:04]} 83. Kg1 {[%clk 0:00:05.4]} 83... Ra1
{[%clk 0:00:04.5]} 84. Kh2 {[%clk 0:00:06.2]} 84... Ra2 {[%clk 0:00:04.3]} 85.
Ne3 {[%clk 0:00:07.1]} 85... Rxf2+ {[%clk 0:00:03.8]} 0-1